[Event "Mitropa Cup Open 2019"]
[Site "Radenci"]
[Date "2019.06.02"]
[Round "7.9"]
[White "Jovanic, Ognjen"]
[Black "Nguyen, Thai Dai Van"]
[Result "1/2-1/2"]
[ECO "D38"]
[WhiteElo "2511"]
[BlackElo "2548"]
[Annotator "ChessBase"]
[PlyCount "72"]
[EventDate "2019.05.27"]
[EventType "team-tourn"]
[EventCountry "SLO"]
[SourceTitle "playchess.com"]
[Source "ChessBase"]
[SourceQuality "1"]
[WhiteTeam "Croatia"]
[BlackTeam "Czech Republic"]
[WhiteTeamCountry "CRO"]
[BlackTeamCountry "CZE"]
[TimeControl "40/5400+30:1800+30"]

1. d4 {[%emt 0:00:23]} Nf6 {[%emt 0:00:00]} 2. Nf3 {[%emt 0:00:16]} d5 {[%emt 0:00:00]} 3. c4 {[%emt 0:01:59]} e6 {[%emt 0:00:00]} 4. Nc3 {[%emt 0:00:44]} Bb4 {[%emt 0:00:07]} 5. Bg5 {[%emt 0:02:00]} h6 {[%emt 0:00:08]} 6. Bxf6 {[%emt 0:01:16]} Qxf6 {[%emt 0:00:06]} 7. e3 {[%emt 0:05:38]} O-O {[%emt 0:00:08]} 8. Rc1 {[%emt 0:00:12]} dxc4 {[%emt 0:00:56]} 9. Bxc4 {[%emt 0:01:26]} c5 {[%emt 0:00:04]} 10. dxc5 {[%emt 0:10:24]} Nd7 {[%emt 0:03:00]} 11. Qb3 {[%emt 0:11:32]} a5 {[%emt 0:24:57]} 12. a3 {[%emt 0:00:22]} Nxc5 {[%emt 0:00:35]} 13. Qc2 {[%emt 0:00:09]} Bxc3+ {[%emt 0:00:06]} 14. Qxc3 {[%emt 0:00:07]} Qxc3+ {[%emt 0:14:57]} 15. Rxc3 {[%emt 0:00:09]} b6 {[%emt 0:01:00]} 16. Ke2 {[%emt 0:10:08]} Bb7 {[%emt 0:01:51]} 17. Rd1 {[%emt 0:00:39]} Rfd8 {[%emt 0:02:06]} 18. Rxd8+ {[%emt 0:05:36]} Rxd8 {[%emt 0:00:23]} 19. Ne1 {[%emt 0:02:23]} Ne4 {[%emt 0:05:22]} 20. Rc2 {[%emt 0:03:44]} Rc8 {[%emt 0:05:30]} 21. Bd3 {[%emt 0:03:30]} Rxc2+ {[%emt 0:00:38]} 22. Bxc2 {[%emt 0:00:08]} Nd6 {[%emt 0:00:32]} 23. Bd3 {[%emt 0:05:06]} e5 {[%emt 0:02:14]} 24. Kd2 {[%emt 0:03:05]} Kf8 {[%emt 0:02:27]} 25. f3 {[%emt 0:03:25]} e4 {[%emt 0:08:33]} 26. Be2 {[%emt 0:00:44]} exf3 {[%emt 0:00:06]} 27. gxf3 {[%emt 0:00:04]} Ke7 {[%emt 0:00:17]} 28. e4 {[%emt 0:06:35]} g5 {[%emt 0:02:02]} 29. Ke3 {[%emt 0:01:19]} f5 {[%emt 0:01:12]} 30. exf5 {[%emt 0:01:05]} Nxf5+ {[%emt 0:00:05]} 31. Kf2 {[%emt 0:03:42]} Kd6 {[%emt 0:06:12]} 32. Nc2 {[%emt 0:03:02]} Kc5 {[%emt 0:10:29]} 33. b4+ {[%emt 0:00:18]} axb4 {[%emt 0:01:30]} 34. axb4+ {[%emt 0:00:01]} Kd6 {[%emt 0:00:08]} 35. Ne3 {[%emt 0:00:51]} Nxe3 {[%emt 0:02:15]} 36. Kxe3 {[%emt 0:00:02]} Ke5 {[%emt 0:00:40] Ke4+} 1/2-1/2

[Event "Mitropa Cup Open 2019"]
[Site "Radenci"]
[Date "2019.06.02"]
[Round "7.10"]
[White "Kraus, Tomas"]
[Black "Kovacevic, Blazimir"]
[Result "1-0"]
[ECO "E12"]
[WhiteElo "2463"]
[BlackElo "2456"]
[Annotator "ChessBase"]
[PlyCount "67"]
[EventDate "2019.05.27"]
[EventType "team-tourn"]
[EventCountry "SLO"]
[SourceTitle "playchess.com"]
[Source "ChessBase"]
[SourceQuality "1"]
[WhiteTeam "Czech Republic"]
[BlackTeam "Croatia"]
[WhiteTeamCountry "CZE"]
[BlackTeamCountry "CRO"]
[TimeControl "40/5400+30:1800+30"]

1. d4 {[%emt 0:00:00]} e6 {[%emt 0:00:03]} 2. Bf4 {[%emt 0:00:25]} b6 {[%emt 0:02:01]} 3. Nf3 {[%emt 0:01:24]} Bb7 {[%emt 0:00:15]} 4. e3 {[%emt 0:00:36]} Nf6 {[%emt 0:02:20]} 5. c4 {[%emt 0:01:22]} c5 {[%emt 0:16:14]} 6. d5 {[%emt 0:00:16]} exd5 {[%emt 0:01:58]} 7. Nc3 {[%emt 0:00:57]} d6 {[%emt 0:16:38]} 8. cxd5 {[%emt 0:00:50]} a6 {[%emt 0:00:17]} 9. a4 {[%emt 0:00:55]} Be7 {[%emt 0:08:47]} 10. h3 {[%emt 0:00:09]} O-O {[%emt 0:00:12]} 11. e4 {[%emt 0:01:19]} Nbd7 {[%emt 0:00:41]} 12. Be2 {[%emt 0:12:16]} Ne8 {[%emt 0:03:32]} 13. O-O {[%emt 0:01:47]} Bf6 {[%emt 0:02:35]} 14. Nd2 {[%emt 0:06:41]} Rb8 {[%emt 0:05:58]} 15. Bh2 {[%emt 0:03:05]} g5 {[%emt 0:13:37]} 16. Nc4 {[%emt 0:08:17]} Ne5 {[%emt 0:00:43]} 17. Ne3 {[%emt 0:03:44]} Bc8 {[%emt 0:01:23]} 18. Bg4 {[%emt 0:07:43]} Ng7 {[%emt 0:02:11]} 19. Bxc8 {[%emt 0:06:19]} Rxc8 {[%emt 0:01:18]} 20. Ne2 {[%emt 0:03:11]} Ng6 {[%emt 0:04:16]} 21. Ng3 {[%emt 0:06:26]} Nh4 {[%emt 0:01:47]} 22. Qe2 {[%emt 0:02:52]} b5 {[%emt 0:04:48]} 23. axb5 {[%emt 0:01:25]} axb5 {[%emt 0:00:04]} 24. Ra6 {[%emt 0:06:07]} c4 {[%emt 0:00:19]} 25. Ng4 {[%emt 0:04:40]} Be5 {[%emt 0:03:08]} 26. Nh6+ {[%emt 0:05:26]} Kh8 {[%emt 0:00:04]} 27. Nh5 {[%emt 0:00:34]} Bxh2+ {[%emt 0:03:26]} 28. Kxh2 {[%emt 0:01:20]} Nxh5 {[%emt 0:00:52]} 29. Qxh5 {[%emt 0:00:32]} Qf6 {[%emt 0:00:10]} 30. f4 {[%emt 0:01:19]} Rce8 {[%emt 0:04:18]} 31. e5 {[%emt 0:06:43]} Rxe5 {[%emt 0:00:43]} 32. Ng4 {[%emt 0:02:41]} Qf5 {[%emt 0:00:40]} 33. Nxe5 {[%emt 0:00:48]} dxe5 {[%emt 0:00:15]} 34. Qxg5 {[%emt 0:00:35]} 1-0

[Event "Mitropa Cup Open 2019"]
[Site "Radenci"]
[Date "2019.06.02"]
[Round "7.11"]
[White "Tica, Sven"]
[Black "Zilka, Stepan"]
[Result "0-1"]
[ECO "D30"]
[WhiteElo "2417"]
[BlackElo "2527"]
[Annotator "ChessBase"]
[PlyCount "76"]
[EventDate "2019.05.27"]
[EventType "team-tourn"]
[EventCountry "SLO"]
[SourceTitle "playchess.com"]
[Source "ChessBase"]
[SourceQuality "1"]
[WhiteTeam "Croatia"]
[BlackTeam "Czech Republic"]
[WhiteTeamCountry "CRO"]
[BlackTeamCountry "CZE"]
[TimeControl "40/5400+30:1800+30"]

1. d4 {[%emt 0:00:00]} d5 {[%emt 0:00:00]} 2. Nf3 {[%emt 0:00:00]} Nf6 {[%emt 0:00:00]} 3. c4 {[%emt 0:00:00]} c6 {[%emt 0:00:00]} 4. e3 {[%emt 0:00:59]} e6 {[%emt 0:01:09]} 5. b3 {[%emt 0:01:27]} Nbd7 {[%emt 0:00:29]} 6. Bd3 {[%emt 0:00:24]} Bd6 {[%emt 0:00:08]} 7. O-O {[%emt 0:00:36]} e5 {[%emt 0:02:59]} 8. dxe5 {[%emt 0:03:28]} Nxe5 {[%emt 0:00:13]} 9. Bb2 {[%emt 0:03:01]} Nxf3+ {[%emt 0:05:40]} 10. Qxf3 {[%emt 0:04:00]} Bg4 {[%emt 0:06:26]} 11. Bxf6 {[%emt 0:01:51]} Qd7 {[%emt 0:02:40]} 12. Qxg4 {[%emt 0:08:31]} Qxg4 {[%emt 0:00:09]} 13. Bb2 {[%emt 0:00:02]} dxc4 {[%emt 0:02:40]} 14. Bxc4 {[%emt 0:00:06]} b5 {[%emt 0:07:37]} 15. Bd3 {[%emt 0:02:17]} Rd8 {[%emt 0:00:08]} 16. h3 {[%emt 0:05:23]} Qe6 {[%emt 0:00:18]} 17. Rd1 {[%emt 0:05:48]} Be5 {[%emt 0:02:27]} 18. Nc3 {[%emt 0:06:41]} O-O {[%emt 0:00:08]} 19. Rac1 {[%emt 0:01:44]} Rd7 {[%emt 0:02:15]} 20. Kf1 {[%emt 0:02:12]} Rfd8 {[%emt 0:01:47]} 21. Ke2 {[%emt 0:00:08]} h5 {[%emt 0:02:28]} 22. Ba3 {[%emt 0:01:34]} a5 {[%emt 0:04:47]} 23. Bc5 {[%emt 0:01:44]} Rxd3 {[%emt 0:06:12]} 24. Rxd3 {[%emt 0:00:41]} Rxd3 {[%emt 0:00:05]} 25. Kxd3 {[%emt 0:00:07]} Qg6+ {[%emt 0:00:29]} 26. Ne4 {[%emt 0:00:28]} f5 {[%emt 0:00:34]} 27. Nd2 {[%emt 0:02:45]} Qxg2 {[%emt 0:00:33]} 28. f4 {[%emt 0:00:19]} Bf6 {[%emt 0:00:54]} 29. Bb6 {[%emt 0:01:02]} a4 {[%emt 0:02:15]} 30. bxa4 {[%emt 0:00:30]} bxa4 {[%emt 0:00:10]} 31. Rc5 {[%emt 0:00:12]} h4 {[%emt 0:03:01]} 32. Rxf5 {[%emt 0:06:04]} Qxh3 {[%emt 0:00:04]} 33. Ra5 {[%emt 0:00:55]} Qg2 {[%emt 0:04:32]} 34. f5 {[%emt 0:00:30]} h3 {[%emt 0:00:54]} 35. Bc7 {[%emt 0:00:16]} h2 {[%emt 0:02:24]} 36. Bxh2 {[%emt 0:00:07]} Qxh2 {[%emt 0:00:03]} 37. Rxa4 {[%emt 0:00:09]} Qd6+ {[%emt 0:00:13]} 38. Ke2 {[%emt 0:00:18]} Qd5 {[%emt 0:00:39]} 0-1

[Event "Mitropa Cup Open 2019"]
[Site "Radenci"]
[Date "2019.06.02"]
[Round "7.12"]
[White "Miesbauer, Jan"]
[Black "Srbis, Jurica"]
[Result "1/2-1/2"]
[ECO "C78"]
[WhiteElo "2407"]
[BlackElo "2429"]
[Annotator "ChessBase"]
[PlyCount "122"]
[EventDate "2019.05.27"]
[EventType "team-tourn"]
[EventCountry "SLO"]
[SourceTitle "playchess.com"]
[Source "ChessBase"]
[SourceQuality "1"]
[WhiteTeam "Czech Republic"]
[BlackTeam "Croatia"]
[WhiteTeamCountry "CZE"]
[BlackTeamCountry "CRO"]
[TimeControl "40/5400+30:1800+30"]

1. e4 {[%emt 0:00:00]} e5 {[%emt 0:00:00]} 2. Nf3 {[%emt 0:00:00]} Nc6 {[%emt 0:00:03]} 3. Bb5 {[%emt 0:00:00]} a6 {[%emt 0:00:16]} 4. Ba4 {[%emt 0:00:04]} Nf6 {[%emt 0:00:07]} 5. d3 {[%emt 0:00:34]} Bc5 {[%emt 0:00:27]} 6. O-O {[%emt 0:00:48]} d6 {[%emt 0:00:14]} 7. c3 {[%emt 0:00:17]} Ba7 {[%emt 0:01:39]} 8. Re1 {[%emt 0:01:01]} O-O {[%emt 0:00:38]} 9. h3 {[%emt 0:01:00]} Ne7 {[%emt 0:00:29]} 10. Nbd2 {[%emt 0:01:05]} Ng6 {[%emt 0:00:34]} 11. Nf1 {[%emt 0:00:38]} c6 {[%emt 0:08:34]} 12. Ng3 {[%emt 0:02:29]} d5 {[%emt 0:05:15]} 13. exd5 {[%emt 0:07:55]} Nxd5 {[%emt 0:00:22]} 14. d4 {[%emt 0:07:59]} exd4 {[%emt 0:02:21]} 15. Nxd4 {[%emt 0:00:56]} Re8 {[%emt 0:03:48]} 16. Rxe8+ {[%emt 0:15:40]} Qxe8 {[%emt 0:00:07]} 17. Qe2 {[%emt 0:05:10]} Bd7 {[%emt 0:02:02]} 18. Bd2 {[%emt 0:05:43]} Bxd4 {[%emt 0:05:22]} 19. cxd4 {[%emt 0:00:13]} Qxe2 {[%emt 0:00:27]} 20. Nxe2 {[%emt 0:00:05]} Be6 {[%emt 0:01:19]} 21. f3 {[%emt 0:01:45]} Nb6 {[%emt 0:07:32]} 22. Bc2 {[%emt 0:00:22]} Nc4 {[%emt 0:00:20]} 23. Bc1 {[%emt 0:01:25]} Rd8 {[%emt 0:02:00]} 24. Kf2 {[%emt 0:01:02]} Ne7 {[%emt 0:01:29]} 25. b3 {[%emt 0:01:08]} Nd6 {[%emt 0:01:51]} 26. g4 {[%emt 0:00:17]} Nd5 {[%emt 0:01:48]} 27. Bd2 {[%emt 0:01:48]} g6 {[%emt 0:07:33]} 28. Rh1 {[%emt 0:04:12]} a5 {[%emt 0:02:50]} 29. a3 {[%emt 0:04:55]} Ra8 {[%emt 0:01:47]} 30. Bd3 {[%emt 0:06:09]} a4 {[%emt 0:05:40]} 31. b4 {[%emt 0:01:02]} Nb6 {[%emt 0:01:46]} 32. Bf4 {[%emt 0:03:25]} Ndc4 {[%emt 0:05:48]} 33. Bc1 {[%emt 0:05:45]} Rd8 {[%emt 0:00:35]} 34. h4 {[%emt 0:02:32]} Nd6 {[%emt 0:00:57]} 35. Nc3 {[%emt 0:03:31]} Bc4 {[%emt 0:01:58]} 36. Bb1 {[%emt 0:00:59]} Re8 {[%emt 0:03:07]} 37. h5 {[%emt 0:02:48]} Bb3 {[%emt 0:05:13]} 38. Bf4 {[%emt 0:03:48]} Ndc4 {[%emt 0:00:40]} 39. Bc1 {[%emt 0:03:44]} Nd6 {[%emt 0:01:55]} 40. Bf4 {[%emt 0:00:00]} Re6 {[%emt 0:00:00]} 41. Bd3 {[%emt 0:19:03]} Nd5 {[%emt 0:05:05]} 42. Nxd5 {[%emt 0:00:30]} Bxd5 {[%emt 0:04:44]} 43. hxg6 {[%emt 0:00:09]} fxg6 {[%emt 0:00:21]} 44. Bxd6 {[%emt 0:01:32]} Rxd6 {[%emt 0:00:03]} 45. Ke3 {[%emt 0:00:18]} Kg7 {[%emt 0:04:35]} 46. g5 {[%emt 0:00:52]} Re6+ {[%emt 0:01:11]} 47. Be4 {[%emt 0:00:07]} Bb3 {[%emt 0:01:16]} 48. Rc1 {[%emt 0:00:49]} h6 {[%emt 0:00:06]} 49. gxh6+ {[%emt 0:00:10]} Kxh6 {[%emt 0:00:02]} 50. Rc5 {[%emt 0:00:34]} Bd5 {[%emt 0:02:22]} 51. b5 {[%emt 0:03:12]} g5 {[%emt 0:00:36]} 52. bxc6 {[%emt 0:08:49]} bxc6 {[%emt 0:00:12]} 53. Kd3 {[%emt 0:00:39]} Bxe4+ {[%emt 0:00:11]} 54. fxe4 {[%emt 0:00:05]} g4 {[%emt 0:00:05]} 55. d5 {[%emt 0:04:37]} cxd5 {[%emt 0:00:14]} 56. exd5 {[%emt 0:00:05]} Rg6 {[%emt 0:00:22]} 57. Ke2 {[%emt 0:01:31]} g3 {[%emt 0:01:42]} 58. Kf1 {[%emt 0:00:14]} Kg5 {[%emt 0:01:55]} 59. Kg2 {[%emt 0:02:10]} Kf5 {[%emt 0:00:40]} 60. Ra5 {[%emt 0:00:52]} Ke4 {[%emt 0:00:33]} 61. Rxa4+ {[%emt 0:00:30]} Kxd5 {[%emt 0:00:05]} 1/2-1/2

[Event "Mitropa Cup Open 2019"]
[Site "Radenci"]
[Date "2019.06.02"]
[Round "7.13"]
[White "Pelletier, Yannick"]
[Black "Perske, Thore"]
[Result "1/2-1/2"]
[ECO "E97"]
[WhiteElo "2547"]
[BlackElo "2456"]
[Annotator "ChessBase"]
[PlyCount "71"]
[EventDate "2019.05.27"]
[EventType "team-tourn"]
[EventCountry "SLO"]
[SourceTitle "playchess.com"]
[Source "ChessBase"]
[SourceQuality "1"]
[WhiteTeam "SUI"]
[BlackTeam "GER"]
[BlackTeamCountry "GER"]
[TimeControl "40/5400+30:1800+30"]

1. Nf3 {[%emt 0:00:00]} Nf6 {[%emt 0:00:00]} 2. c4 {[%emt 0:00:07]} g6 {[%emt 0:00:06]} 3. Nc3 {[%emt 0:00:05]} Bg7 {[%emt 0:00:08]} 4. d4 {[%emt 0:00:06]} O-O {[%emt 0:00:07]} 5. e4 {[%emt 0:00:12]} d6 {[%emt 0:00:07]} 6. Be2 {[%emt 0:00:06]} e5 {[%emt 0:00:10]} 7. O-O {[%emt 0:00:14]} Nc6 {[%emt 0:00:07]} 8. d5 {[%emt 0:06:22]} Ne7 {[%emt 0:00:33]} 9. Bg5 {[%emt 0:00:36]} h6 {[%emt 0:08:27]} 10. Bxf6 {[%emt 0:00:32]} Bxf6 {[%emt 0:00:04]} 11. b4 {[%emt 0:00:05]} a5 {[%emt 0:24:33]} 12. a3 {[%emt 0:00:56]} c6 {[%emt 0:00:48]} 13. Nd2 {[%emt 0:28:56]} Bg5 {[%emt 0:05:51]} 14. Nb3 {[%emt 0:00:56]} cxd5 {[%emt 0:04:53]} 15. cxd5 {[%emt 0:01:11]} axb4 {[%emt 0:02:09]} 16. axb4 {[%emt 0:00:12]} Bd7 {[%emt 0:00:22]} 17. Na5 {[%emt 0:21:40]} Qc7 {[%emt 0:09:39]} 18. Qd3 {[%emt 0:19:49]} Rfc8 {[%emt 0:10:02]} 19. Nb5 {[%emt 0:00:05]} Qb6 {[%emt 0:00:28]} 20. Kh1 {[%emt 0:01:17]} f5 {[%emt 0:09:08]} 21. f3 {[%emt 0:00:04]} Bxb5 {[%emt 0:04:00]} 22. Qxb5 {[%emt 0:00:06]} Qxb5 {[%emt 0:00:06]} 23. Bxb5 {[%emt 0:00:04]} Bd2 {[%emt 0:00:06]} 24. Nxb7 {[%emt 0:07:57]} Bxb4 {[%emt 0:01:33]} 25. Rxa8 {[%emt 0:01:13]} Rxa8 {[%emt 0:00:03]} 26. Rb1 {[%emt 0:00:17]} fxe4 {[%emt 0:06:20]} 27. fxe4 {[%emt 0:00:13]} Rb8 {[%emt 0:00:39]} 28. Bc6 {[%emt 0:02:42]} Bc5 {[%emt 0:09:47]} 29. g3 {[%emt 0:00:43]} Nxc6 {[%emt 0:00:45]} 30. dxc6 {[%emt 0:00:05]} Rc8 {[%emt 0:00:09]} 31. Na5 {[%emt 0:00:22]} Kf7 {[%emt 0:00:16]} 32. Rb7+ {[%emt 0:03:59]} Ke6 {[%emt 0:00:01]} 33. Rg7 {[%emt 0:02:26]} Kf6 {[%emt 0:00:37]} 34. Rb7 {[%emt 0:00:44]} Ke6 {[%emt 0:00:05]} 35. Rg7 {[%emt 0:01:31]} Kf6 {[%emt 0:00:06]} 36. Rb7 {[%emt 0:01:13]} 1/2-1/2

[Event "Mitropa Cup Open 2019"]
[Site "Radenci"]
[Date "2019.06.02"]
[Round "7.15"]
[White "Gaehwiler, Gabriel"]
[Black "Lagunow, Raphael"]
[Result "0-1"]
[ECO "E04"]
[WhiteElo "2431"]
[BlackElo "2420"]
[Annotator "ChessBase"]
[PlyCount "94"]
[EventDate "2019.05.27"]
[EventType "team-tourn"]
[EventCountry "SLO"]
[SourceTitle "playchess.com"]
[Source "ChessBase"]
[SourceQuality "1"]
[WhiteTeam "Switzerland"]
[BlackTeam "Germany"]
[WhiteTeamCountry "SUI"]
[BlackTeamCountry "GER"]
[TimeControl "40/5400+30:1800+30"]

1. d4 {[%emt 0:00:00]} d5 {[%emt 0:00:00]} 2. c4 {[%emt 0:00:00]} e6 {[%emt 0:00:00]} 3. Nf3 {[%emt 0:00:00]} Nf6 {[%emt 0:00:00]} 4. g3 {[%emt 0:01:37]} Bb4+ {[%emt 0:00:15]} 5. Nc3 {[%emt 0:05:44]} dxc4 {[%emt 0:08:55]} 6. Bg2 {[%emt 0:01:36]} O-O {[%emt 0:00:07]} 7. O-O {[%emt 0:02:25]} Nc6 {[%emt 0:00:08]} 8. Bg5 {[%emt 0:01:05]} Rb8 {[%emt 0:17:56]} 9. a3 {[%emt 0:27:22]} Be7 {[%emt 0:04:02]} 10. Qa4 {[%emt 0:00:43]} h6 {[%emt 0:22:35]} 11. Bxf6 {[%emt 0:13:31]} Bxf6 {[%emt 0:00:07]} 12. e3 {[%emt 0:02:55]} b5 {[%emt 0:08:35]} 13. Nxb5 {[%emt 0:01:00]} Bd7 {[%emt 0:00:11]} 14. Nxa7 {[%emt 0:01:43]} Ne7 {[%emt 0:02:43]} 15. Qxc4 {[%emt 0:07:23]} c6 {[%emt 0:02:11]} 16. e4 {[%emt 0:24:30]} g6 {[%emt 0:16:07]} 17. e5 {[%emt 0:00:21]} Bg7 {[%emt 0:00:06]} 18. Ne1 {[%emt 0:01:01]} Qb6 {[%emt 0:02:29]} 19. Qb4 {[%emt 0:01:34]} Nd5 {[%emt 0:03:54]} 20. Qxb6 {[%emt 0:00:08]} Rxb6 {[%emt 0:00:06]} 21. Nd3 {[%emt 0:00:13]} Ra8 {[%emt 0:00:53]} 22. Nxc6 {[%emt 0:00:45]} Bxc6 {[%emt 0:02:16]} 23. Rfc1 {[%emt 0:00:32]} Ne7 {[%emt 0:01:51]} 24. a4 {[%emt 0:02:00]} Rxa4 {[%emt 0:02:03]} 25. Rxa4 {[%emt 0:02:01]} Bxa4 {[%emt 0:00:01]} 26. Rc7 {[%emt 0:00:22]} Nf5 {[%emt 0:02:09]} 27. d5 {[%emt 0:01:05]} exd5 {[%emt 0:00:55]} 28. Bxd5 {[%emt 0:00:02]} Bb3 {[%emt 0:00:15]} 29. Be4 {[%emt 0:02:10]} Be6 {[%emt 0:00:32]} 30. b4 {[%emt 0:00:09]} Bf8 {[%emt 0:01:19]} 31. Rb7 {[%emt 0:00:51]} Rxb7 {[%emt 0:00:14]} 32. Bxb7 {[%emt 0:00:02]} Bc4 {[%emt 0:00:16]} 33. Be4 {[%emt 0:00:24]} Nd4 {[%emt 0:01:20]} 34. Nc5 {[%emt 0:00:12]} Kg7 {[%emt 0:01:01]} 35. f4 {[%emt 0:00:05]} Ne6 {[%emt 0:00:22]} 36. Nxe6+ {[%emt 0:00:53]} fxe6 {[%emt 0:00:12]} 37. h4 {[%emt 0:01:18]} Bxb4 {[%emt 0:00:53]} 38. g4 {[%emt 0:00:24]} Bd2 {[%emt 0:01:18]} 39. f5 {[%emt 0:00:05]} g5 {[%emt 0:00:07]} 40. Kg2 {[%emt 0:00:00]} Bf4 {[%emt 0:00:00]} 41. fxe6 {[%emt 0:04:41]} Bxe6 {[%emt 0:06:22]} 42. hxg5 {[%emt 0:04:48]} hxg5 {[%emt 0:00:20]} 43. Kf3 {[%emt 0:04:03]} Bxe5 {[%emt 0:00:08]} 44. Bc6 {[%emt 0:00:06]} Kf6 {[%emt 0:00:13]} 45. Be4 {[%emt 0:03:56]} Bc3 {[%emt 0:01:01]} 46. Bc2 {[%emt 0:00:28]} Ke5 {[%emt 0:00:27]} 47. Be4 {[%emt 0:01:32]} Bd5 {[%emt 0:01:30]} 0-1

[Event "Mitropa Cup Open 2019"]
[Site "Radenci"]
[Date "2019.06.02"]
[Round "7.16"]
[White "Schmidek, Emil"]
[Black "Stijve, Theo"]
[Result "1-0"]
[ECO "B47"]
[WhiteElo "2396"]
[BlackElo "2310"]
[Annotator "RC"]
[PlyCount "163"]
[EventDate "2019.05.27"]
[EventType "team-tourn"]
[EventCountry "SLO"]
[SourceTitle "playchess.com"]
[Source "ChessBase"]
[SourceQuality "1"]
[WhiteTeam "Germany"]
[BlackTeam "Switzerland"]
[WhiteTeamCountry "GER"]
[BlackTeamCountry "SUI"]
[TimeControl "40/5400+30:1800+30"]

1. e4 {[%emt 0:00:00]} c5 {[%emt 0:00:09]} 2. Nf3 {[%emt 0:00:00]} Nc6 {[%emt 0:00:07]} 3. d4 {[%emt 0:00:00]} cxd4 {[%emt 0:00:08]} 4. Nxd4 {[%emt 0:00:00]} Qc7 {[%emt 0:00:09]} 5. Nc3 {[%emt 0:00:02]} e6 {[%emt 0:00:07]} 6. Qd3 {[%emt 0:00:07]} a6 {[%emt 0:02:47]} 7. Nxc6 {[%emt 0:00:26]} Qxc6 {[%emt 0:04:31]} 8. Qg3 {[%emt 0:00:33]} Nf6 {[%emt 0:04:18]} 9. Bd3 {[%emt 0:02:43]} h5 {[%emt 0:06:39]} 10. e5 {[%emt 0:16:20]} h4 {[%emt 0:06:17]} 11. Qh3 {[%emt 0:01:38]} Nd5 {[%emt 0:03:46]} 12. Be4 {[%emt 0:02:26]} Bb4 {[%emt 0:01:34]} 13. Bd2 {[%emt 0:04:12]} Qc7 {[%emt 0:18:06]} 14. O-O {[%emt 0:28:57]} Nxc3 {[%emt 0:05:28]} 15. Bxc3 {[%emt 0:00:50]} Bxc3 {[%emt 0:02:59]} 16. Qxc3 {[%emt 0:00:14]} Qxc3 {[%emt 0:00:16]} 17. bxc3 {[%emt 0:00:02]} Rb8 {[%emt 0:07:17]} 18. Rfd1 {[%emt 0:01:54]} Ke7 {[%emt 0:03:53]} 19. Rd4 {[%emt 0:12:47]} b5 {[%emt 0:07:17]} 20. Rad1 {[%emt 0:00:46]} f5 {[%emt 0:02:44]} 21. Bf3 {[%emt 0:06:23]} g5 {[%emt 0:00:29]} 22. g3 {[%emt 0:01:49]} h3 {[%emt 0:03:26]} 23. Rd6 {[%emt 0:11:21]} Rd8 {[%emt 0:03:50]} 24. g4 {[%emt 0:02:51]} f4 {[%emt 0:05:27]} 25. R1d3 {[%emt 0:00:43]} Rh8 {[%emt 0:01:45]} 26. a3 {[%emt 0:01:26]} Rh7 {[%emt 0:02:09]} 27. Kf1 {[%emt 0:01:05]} Ke8 {[%emt 0:02:06]} 28. Be4 {[%emt 0:00:09]} Rh6 {[%emt 0:00:56]} 29. f3 {[%emt 0:01:40]} Ke7 {[%emt 0:01:09]} 30. Ke2 {[%emt 0:00:05]} Rh8 {[%emt 0:00:21]} 31. R3d4 {[%emt 0:00:37]} Rd8 {[%emt 0:00:56]} 32. Kd3 {[%emt 0:02:29]} Bb7 {[%emt 0:01:55]} 33. Bxb7 {[%emt 0:00:25]} Rxb7 {[%emt 0:00:01]} 34. Rxa6 {[%emt 0:00:09]} Rc8 {[%emt 0:00:08]} 35. Kd2 {[%emt 0:01:42]} Rc5 {[%emt 0:01:17]} 36. Ra8 {[%emt 0:00:29]} Rxe5 {[%emt 0:00:11]} 37. Rh8 {[%emt 0:00:13]} Rc5 {[%emt 0:02:47]} 38. Rxh3 {[%emt 0:00:35]} Ra7 {[%emt 0:00:52]} 39. Rd3 {[%emt 0:00:50]} Kd8 {[%emt 0:00:38]} 40. Rh8+ {[%emt 0:00:00]} Kc7 {[%emt 0:00:00]} 41. Rxd7+ {[%emt 0:21:58]} Kxd7 {[%emt 0:00:50]} 42. Rh7+ {[%emt 0:00:02]} Kc6 {[%emt 0:04:36]} 43. Rxa7 {[%emt 0:00:05]} Rd5+ {[%emt 0:00:58]} 44. Kc1 {[%emt 0:06:06]} Re5 {[%emt 0:00:48]} 45. Rg7 {[%emt 0:00:29]} Re3 {[%emt 0:04:49]} 46. Rxg5 {[%emt 0:00:08]} Rxf3 {[%emt 0:00:06]} 47. Re5 {[%emt 0:01:37]} Rxc3 {[%emt 0:06:20]} 48. Rxe6+ {[%emt 0:00:41]} Kd5 {[%emt 0:00:07]} 49. Rf6 {[%emt 0:00:42]} Ke4 {[%emt 0:01:20]} 50. g5 {[%emt 0:01:16]} Rxa3 {[%emt 0:03:29]} 51. g6 {[%emt 0:00:49]} Ra1+ {[%emt 0:01:18]} 52. Kd2 {[%emt 0:00:37]} Rh1 {[%emt 0:01:03]} 53. Re6+ {[%emt 0:00:24]} Kf3 {[%emt 0:01:31]} 54. Kd3 {[%emt 0:02:37]} Rxh2 {[%emt 0:02:00]} 55. g7 {[%emt 0:00:29]} Rg2 {[%emt 0:00:02]} 56. Re1 {[%emt 0:00:04]} Rg3 {[%emt 0:05:36]} 57. g8=Q {[%emt 0:00:20]} Rxg8 {[%emt 0:00:11]} 58. Rf1+ {[%emt 0:00:03]} Kg2 {[%emt 0:00:41]} 59. Rxf4 {[%emt 0:00:01]} Rc8 {[%emt 0:02:55]} 60. Rf5 {[%emt 0:00:45]} Kg3 {[%emt 0:01:33]} 61. Rxb5 {[%emt 0:00:16]} Kf4 {[%emt 0:00:10]} 62. Rd5 {[%emt 0:00:03]} Rc7 {[%emt 0:01:03]} 63. c4 {[%emt 0:00:05]} Rc8 {[%emt 0:00:35]} 64. c5 {[%emt 0:00:06]} Ra8 {[%emt 0:00:29]} 65. Kc4 {[%emt 0:00:28]} Ke4 {[%emt 0:00:22]} 66. Rd6 {[%emt 0:00:04]} Ke5 {[%emt 0:00:25]} 67. Kb5 {[%emt 0:00:04]} Ra1 {[%emt 0:00:46]} 68. Kb6 {[%emt 0:00:09]} Rb1+ {[%emt 0:00:22]} 69. Kc7 {[%emt 0:00:17]} Ra1 {[%emt 0:00:35]} 70. Rd2 {[%emt 0:00:19]} Ke6 {[%emt 0:00:31]} 71. c6 {[%emt 0:00:06]} Rc1 {[%emt 0:00:27]} 72. Kb7 {[%emt 0:00:08]} Rb1+ {[%emt 0:00:28]} 73. Kc8 {[%emt 0:00:04]} Rb3 {[%emt 0:00:37]} 74. c7 {[%emt 0:01:29]} Ke7 {[%emt 0:00:27]} 75. Re2+ {[%emt 0:00:44]} Kf6 {[%emt 0:00:19]} 76. Re4 {[%emt 0:00:49]} Kf5 {[%emt 0:00:08]} 77. Rd4 {[%emt 0:01:08]} Ke5 {[%emt 0:00:30]} 78. Rd1 {[%emt 0:00:10]} Rh3 {[%emt 0:00:37]} 79. Kd7 {[%emt 0:00:18]} Rh7+ {[%emt 0:00:12]} 80. Kc6 {[%emt 0:00:09]} Rh6+ {[%emt 0:00:10]} 81. Kb7 {[%emt 0:00:05]} Rh7 {[%emt 0:00:08]} 82. Kb8 {[%emt 0:00:04]} 1-0